[Event "*** MasterClass Titled Tuesday Blitz"]
[Site "Chess.com"]
[Date "2017.10.03"]
[Round "5"]
[White "Fandorine"]
[Black "nubair1198"]
[Result "1-0"]
[WhiteElo "2637"]
[BlackElo "2438"]
[TimeControl "180+2"]
[EndTime "14:05:48 PDT"]
[Termination "Fandorine won by resignation"]

1. e4 {[%clk 0:03:01.5]} 1... Nf6 {[%clk 0:03:01]} 2. e5 {[%clk 0:03:01.2]} 2...
Nd5 {[%clk 0:03:02.3]} 3. c4 {[%clk 0:03:02.4]} 3... Nb6 {[%clk 0:03:03.3]} 4.
d4 {[%clk 0:03:04.1]} 4... d6 {[%clk 0:03:04.6]} 5. f4 {[%clk 0:03:05.7]} 5...
Bf5 {[%clk 0:03:04.3]} 6. Nc3 {[%clk 0:03:03.9]} 6... dxe5 {[%clk 0:03:05.5]} 7.
fxe5 {[%clk 0:03:05]} 7... e6 {[%clk 0:03:07]} 8. Be3 {[%clk 0:03:05.7]} 8...
Nc6 {[%clk 0:03:07.5]} 9. Nf3 {[%clk 0:03:06.2]} 9... Be7 {[%clk 0:03:07]} 10.
d5 {[%clk 0:02:50.3]} 10... exd5 {[%clk 0:03:07.7]} 11. cxd5 {[%clk 0:02:51.8]}
11... Nb4 {[%clk 0:03:08.6]} 12. Nd4 {[%clk 0:02:53.3]} 12... Bd7 {[%clk
0:03:01.3]} 13. e6 {[%clk 0:02:52]} 13... fxe6 {[%clk 0:03:01.7]} 14. dxe6
{[%clk 0:02:53.4]} 14... Bc6 {[%clk 0:03:03.3]} 15. a3 {[%clk 0:02:50.1]} 15...
N4d5 {[%clk 0:03:00.2]} 16. Nxc6 {[%clk 0:02:23]} 16... bxc6 {[%clk 0:03:02.1]}
17. Bd4 {[%clk 0:02:21.9]} 17... O-O {[%clk 0:03:00.4]} 18. Qg4 {[%clk 0:02:15]}
18... Bh4+ {[%clk 0:02:51.3]} 19. g3 {[%clk 0:02:09.3]} 19... Bf6 {[%clk
0:02:52.9]} 20. O-O-O {[%clk 0:02:03.3]} 20... Bxd4 {[%clk 0:02:48.9]} 21. Rxd4
{[%clk 0:02:04.4]} 21... Qf6 {[%clk 0:02:47.7]} 22. Nxd5 {[%clk 0:01:55.7]}
22... cxd5 {[%clk 0:02:43.8]} 23. Rf4 {[%clk 0:01:49.5]} 23... Qe5 {[%clk
0:02:41.1]} 24. Bd3 {[%clk 0:01:50.4]} 24... Nc4 {[%clk 0:01:27.2]} 25. Bxc4
{[%clk 0:01:37]} 25... dxc4 {[%clk 0:01:29.1]} 26. Rxf8+ {[%clk 0:01:34.8]}
26... Rxf8 {[%clk 0:01:31]} 27. Qxc4 {[%clk 0:01:33.9]} 27... Rf2 {[%clk
0:01:30.4]} 28. e7+ {[%clk 0:01:11]} 28... Kh8 {[%clk 0:01:20.1]} 29. Qb4 {[%clk
0:01:08.5]} 29... c5 {[%clk 0:01:09]} 30. Re1 {[%clk 0:00:56.7]} 30... Qg5+
{[%clk 0:00:44.6]} 31. Kb1 {[%clk 0:00:55.3]} 31... Qg6+ {[%clk 0:00:33.7]} 32.
Qe4 {[%clk 0:00:54.7]} 32... Qe8 {[%clk 0:00:33.2]} 33. Qc6 {[%clk 0:00:49.8]}
33... Qxc6 {[%clk 0:00:27.7]} 34. e8=Q+ {[%clk 0:00:49.6]} 1-0

[Event "*** MasterClass Titled Tuesday Blitz"]
[Site "Chess.com"]
[Date "2017.10.03"]
[Round "5"]
[White "MatthewG-p4p"]
[Black "iusegine"]
[Result "1-0"]
[WhiteElo "2583"]
[BlackElo "2294"]
[TimeControl "180+2"]
[EndTime "14:05:52 PDT"]
[Termination "MatthewG-p4p won by resignation"]

1. c4 {[%clk 0:03:01.9]} 1... c5 {[%clk 0:02:58]} 2. Nf3 {[%clk 0:03:02]} 2...
Nf6 {[%clk 0:02:59.2]} 3. g3 {[%clk 0:03:03.4]} 3... Nc6 {[%clk 0:02:59.3]} 4.
Bg2 {[%clk 0:03:04.7]} 4... d5 {[%clk 0:03:00.4]} 5. cxd5 {[%clk 0:03:04.5]}
5... Nxd5 {[%clk 0:03:01.8]} 6. O-O {[%clk 0:03:06.1]} 6... e5 {[%clk
0:03:02.5]} 7. d3 {[%clk 0:03:04.3]} 7... Be7 {[%clk 0:03:01.8]} 8. Nbd2 {[%clk
0:03:03.5]} 8... O-O {[%clk 0:02:59.1]} 9. a3 {[%clk 0:02:48.7]} 9... Be6 {[%clk
0:02:57]} 10. e3 {[%clk 0:02:47.4]} 10... Qd7 {[%clk 0:02:00.5]} 11. Qe2 {[%clk
0:02:23.8]} 11... Rfd8 {[%clk 0:01:52.8]} 12. Ne4 {[%clk 0:02:24.4]} 12... h6
{[%clk 0:01:49]} 13. Rd1 {[%clk 0:02:24.1]} 13... Rac8 {[%clk 0:01:39.4]} 14.
Bd2 {[%clk 0:02:16.4]} 14... b6 {[%clk 0:01:23.7]} 15. Bc3 {[%clk 0:02:11.7]}
15... Qc7 {[%clk 0:01:25.1]} 16. Ned2 {[%clk 0:02:09.5]} 16... b5 {[%clk
0:01:19.2]} 17. Rac1 {[%clk 0:02:00.1]} 17... Qb8 {[%clk 0:01:17.9]} 18. b3
{[%clk 0:01:54]} 18... Nxc3 {[%clk 0:01:09.3]} 19. Rxc3 {[%clk 0:01:54.7]} 19...
f5 {[%clk 0:00:56.6]} 20. Rdc1 {[%clk 0:01:53.9]} 20... Qb6 {[%clk 0:00:54.5]}
21. d4 {[%clk 0:01:52.1]} 21... cxd4 {[%clk 0:00:54]} 22. exd4 {[%clk
0:01:40.1]} 22... e4 {[%clk 0:00:54.6]} 23. Nxe4 {[%clk 0:01:08.2]} 23... fxe4
{[%clk 0:00:56.5]} 24. Qxe4 {[%clk 0:01:09.9]} 24... Bd5 {[%clk 0:00:57.5]} 25.
Qg4 {[%clk 0:01:09.8]} 25... Bf6 {[%clk 0:00:49.5]} 26. Ne5 {[%clk 0:01:11]}
26... Bxg2 {[%clk 0:00:43.8]} 27. Qe6+ {[%clk 0:01:06.7]} 27... Kh8 {[%clk
0:00:41.5]} 28. Nf7+ {[%clk 0:01:00.5]} 28... Kh7 {[%clk 0:00:42.7]} 29. Kxg2
{[%clk 0:00:52.8]} 29... Qb7 {[%clk 0:00:32]} 30. Qe4+ {[%clk 0:00:47.6]} 30...
Kg8 {[%clk 0:00:22.7]} 31. Nxd8 {[%clk 0:00:48.2]} 1-0

[Event "*** MasterClass Titled Tuesday Blitz"]
[Site "Chess.com"]
[Date "2017.10.03"]
[Round "5"]
[White "Quiet_Desperation"]
[Black "TamNguyen2"]
[Result "1-0"]
[WhiteElo "2311"]
[BlackElo "2219"]
[TimeControl "180+2"]
[EndTime "14:05:57 PDT"]
[Termination "Quiet_Desperation won by resignation"]

1. e4 {[%clk 0:03:01.9]} 1... a6 {[%clk 0:03:00.3]} 2. d4 {[%clk 0:03:01.8]}
2... b5 {[%clk 0:03:01.1]} 3. Bd3 {[%clk 0:03:01.1]} 3... e6 {[%clk 0:03:00.6]}
4. Nf3 {[%clk 0:03:01.4]} 4... c5 {[%clk 0:03:00.8]} 5. c3 {[%clk 0:03:01.9]}
5... Nc6 {[%clk 0:02:59.2]} 6. O-O {[%clk 0:03:02.1]} 6... cxd4 {[%clk
0:02:59.5]} 7. cxd4 {[%clk 0:03:02]} 7... Bb7 {[%clk 0:02:58]} 8. a3 {[%clk
0:02:54.3]} 8... Nf6 {[%clk 0:02:57.9]} 9. Nc3 {[%clk 0:02:53.6]} 9... Be7
{[%clk 0:02:58.1]} 10. Bc2 {[%clk 0:02:51.6]} 10... d6 {[%clk 0:02:58]} 11. Qe2
{[%clk 0:02:51.5]} 11... O-O {[%clk 0:02:53.1]} 12. Rd1 {[%clk 0:02:49.4]} 12...
b4 {[%clk 0:02:45.2]} 13. Na4 {[%clk 0:02:44.9]} 13... Qa5 {[%clk 0:02:41.8]}
14. e5 {[%clk 0:02:44.1]} 14... dxe5 {[%clk 0:02:30.2]} 15. dxe5 {[%clk
0:02:43.8]} 15... Nd5 {[%clk 0:02:30.6]} 16. Qe4 {[%clk 0:02:30]} 16... g6
{[%clk 0:02:28.7]} 17. Bh6 {[%clk 0:02:28.7]} 17... Rfd8 {[%clk 0:02:25.3]} 18.
Ng5 {[%clk 0:02:15.2]} 18... bxa3 {[%clk 0:02:17]} 19. bxa3 {[%clk 0:02:12.7]}
19... Nc3 {[%clk 0:02:06]} 20. Nxc3 {[%clk 0:02:11.6]} 20... Qxc3 {[%clk
0:02:07.9]} 21. Ba4 {[%clk 0:01:49.8]} 21... Qxe5 {[%clk 0:01:46.5]} 22. Bxc6
{[%clk 0:01:48.3]} 22... Qxe4 {[%clk 0:01:44.9]} 23. Bxe4 {[%clk 0:01:46.8]}
23... Bxg5 {[%clk 0:01:42.2]} 24. Rxd8+ {[%clk 0:01:47.1]} 24... Bxd8 {[%clk
0:01:19.5]} 25. Bxb7 {[%clk 0:01:46.4]} 25... Ra7 {[%clk 0:01:20.5]} 26. Bf3
{[%clk 0:01:28.1]} 26... g5 {[%clk 0:01:18.1]} 27. h4 {[%clk 0:01:24.9]} 27...
f6 {[%clk 0:01:17.9]} 28. Bh5 {[%clk 0:01:17.4]} 28... Rd7 {[%clk 0:01:13.6]}
29. Re1 {[%clk 0:01:11.8]} 29... Rd6 {[%clk 0:01:11.6]} 30. Rb1 {[%clk
0:01:04.2]} 30... gxh4 {[%clk 0:01:08.4]} 31. Rb7 {[%clk 0:01:01.9]} 31... Ba5
{[%clk 0:00:43.3]} 32. Bf7+ {[%clk 0:00:50.5]} 32... Kh8 {[%clk 0:00:43.8]} 33.
Rb8+ {[%clk 0:00:47.8]} 33... Rd8 {[%clk 0:00:40.4]} 34. Rxd8+ {[%clk
0:00:47.2]} 34... Bxd8 {[%clk 0:00:42.3]} 35. Bxe6 {[%clk 0:00:48]} 35... a5
{[%clk 0:00:36.4]} 36. a4 {[%clk 0:00:47.8]} 36... f5 {[%clk 0:00:32.3]} 37.
Bxf5 {[%clk 0:00:45.3]} 37... Be7 {[%clk 0:00:31.3]} 38. Kf1 {[%clk 0:00:43.5]}
1-0

[Event "*** MasterClass Titled Tuesday Blitz"]
[Site "Chess.com"]
[Date "2017.10.03"]
[Round "5"]
[White "2L8IWUN"]
[Black "pastouche06"]
[Result "1/2-1/2"]
[WhiteElo "1805"]
[BlackElo "2275"]
[TimeControl "180+2"]
[EndTime "14:05:59 PDT"]
[Termination "Game drawn by agreement"]

1. d4 {[%clk 0:02:59.7]} 1... Nf6 {[%clk 0:02:51.9]} 2. Bf4 {[%clk 0:02:58]}
2... g6 {[%clk 0:02:51.6]} 3. Nc3 {[%clk 0:02:56.2]} 3... d5 {[%clk 0:02:51]} 4.
e3 {[%clk 0:02:56.9]} 4... Bg7 {[%clk 0:02:38]} 5. h4 {[%clk 0:02:55.5]} 5... a6
{[%clk 0:02:36]} 6. Be2 {[%clk 0:02:50.5]} 6... c5 {[%clk 0:02:37.2]} 7. h5
{[%clk 0:02:46.7]} 7... Qa5 {[%clk 0:02:34.3]} 8. h6 {[%clk 0:02:34.4]} 8... Bf8
{[%clk 0:02:33.6]} 9. dxc5 {[%clk 0:02:35.5]} 9... Qxc5 {[%clk 0:02:26.9]} 10.
Be5 {[%clk 0:02:32.4]} 10... Nbd7 {[%clk 0:02:26.1]} 11. Bd4 {[%clk 0:02:29.6]}
11... Qa5 {[%clk 0:02:25.3]} 12. a3 {[%clk 0:02:27.8]} 12... e5 {[%clk
0:02:22.5]} 13. b4 {[%clk 0:02:24.8]} 13... Qc7 {[%clk 0:02:22.8]} 14. g4 {[%clk
0:01:15.2]} 14... exd4 {[%clk 0:02:21.3]} 15. Qxd4 {[%clk 0:01:12.4]} 15... Qe5
{[%clk 0:02:05.7]} 16. Qxe5+ {[%clk 0:01:06.1]} 16... Nxe5 {[%clk 0:02:07.6]}
17. g5 {[%clk 0:01:08]} 17... Ne4 {[%clk 0:02:07.2]} 18. Nxd5 {[%clk 0:01:04.8]}
18... Bd6 {[%clk 0:02:03.5]} 19. Rd1 {[%clk 0:00:50.1]} 19... Be6 {[%clk
0:02:00.9]} 20. Rh4 {[%clk 0:00:46.4]} 20... Nxg5 {[%clk 0:01:58.1]} 21. f4
{[%clk 0:00:42.6]} 21... O-O-O {[%clk 0:01:55.6]} 22. fxg5 {[%clk 0:00:38]}
22... Bxd5 {[%clk 0:01:54.4]} 23. Rhd4 {[%clk 0:00:32.1]} 23... Be7 {[%clk
0:01:19.9]} 24. Rxd5 {[%clk 0:00:33.1]} 24... Rxd5 {[%clk 0:01:20.6]} 25. Rxd5
{[%clk 0:00:33.8]} 25... f6 {[%clk 0:01:19.4]} 26. gxf6 {[%clk 0:00:31.3]} 26...
Bxf6 {[%clk 0:01:21.3]} 27. Nf3 {[%clk 0:00:31.9]} 27... Re8 {[%clk 0:01:19.5]}
28. Nxe5 {[%clk 0:00:30.6]} 28... Rxe5 {[%clk 0:01:21.4]} 29. Bg4+ {[%clk
0:00:32.1]} 29... Kc7 {[%clk 0:01:21.3]} 30. Rxe5 {[%clk 0:00:24.7]} 30... Bxe5
{[%clk 0:01:22]} 31. Be6 {[%clk 0:00:26.1]} 31... Bf6 {[%clk 0:01:01.6]} 32. Bg8
{[%clk 0:00:21.3]} 32... Bg5 {[%clk 0:01:03]} 33. Bxh7 {[%clk 0:00:22.5]} 33...
Bxe3 {[%clk 0:01:03.3]} 34. Bxg6 {[%clk 0:00:23.6]} 34... Bxh6 {[%clk
0:01:05.2]} 35. Ke2 {[%clk 0:00:23.5]} 35... b5 {[%clk 0:01:05.2]} 36. Bd3
{[%clk 0:00:18.2]} 36... Bc1 {[%clk 0:01:06.2]} 37. c4 {[%clk 0:00:15.6]} 37...
Bxa3 {[%clk 0:01:06.9]} 38. cxb5 {[%clk 0:00:15.5]} 38... axb5 {[%clk
0:01:08.8]} 39. Bxb5 {[%clk 0:00:16.6]} 39... Bxb4 {[%clk 0:01:10.7]} 1/2-1/2

[Event "*** MasterClass Titled Tuesday Blitz"]
[Site "Chess.com"]
[Date "2017.10.03"]
[Round "5"]
[White "Keranke"]
[Black "joppie2"]
[Result "0-1"]
[WhiteElo "2705"]
[BlackElo "2589"]
[TimeControl "180+2"]
[EndTime "14:06:18 PDT"]
[Termination "joppie2 won by resignation"]

1. d4 {[%clk 0:03:01.9]} 1... Nf6 {[%clk 0:03:00.9]} 2. c4 {[%clk 0:03:02.5]}
2... g6 {[%clk 0:02:59.5]} 3. g3 {[%clk 0:03:02.6]} 3... Bg7 {[%clk 0:03:00.1]}
4. Bg2 {[%clk 0:03:04.2]} 4... O-O {[%clk 0:03:01.6]} 5. Nc3 {[%clk 0:03:05.7]}
5... d6 {[%clk 0:03:02.4]} 6. Nf3 {[%clk 0:03:07.3]} 6... Nc6 {[%clk 0:03:00.4]}
7. O-O {[%clk 0:03:08.5]} 7... Bf5 {[%clk 0:03:00.9]} 8. d5 {[%clk 0:03:08.1]}
8... Na5 {[%clk 0:03:01.4]} 9. Nd2 {[%clk 0:03:07.4]} 9... c5 {[%clk 0:03:02.1]}
10. e4 {[%clk 0:03:07.4]} 10... Bg4 {[%clk 0:02:57.3]} 11. Qc2 {[%clk
0:03:07.8]} 11... a6 {[%clk 0:02:58.7]} 12. h3 {[%clk 0:03:06.5]} 12... Bd7
{[%clk 0:02:55.7]} 13. b3 {[%clk 0:03:08]} 13... b5 {[%clk 0:02:56.6]} 14. Bb2
{[%clk 0:03:09.4]} 14... e5 {[%clk 0:02:56.9]} 15. dxe6 {[%clk 0:02:57.6]} 15...
Bxe6 {[%clk 0:02:55.8]} 16. cxb5 {[%clk 0:02:58.3]} 16... axb5 {[%clk
0:02:56.3]} 17. Nxb5 {[%clk 0:02:58.7]} 17... Qd7 {[%clk 0:02:53.9]} 18. Nxd6
{[%clk 0:02:58.6]} 18... Bxh3 {[%clk 0:02:50.9]} 19. N2c4 {[%clk 0:02:43.3]}
19... Nxc4 {[%clk 0:02:45.1]} 20. Nxc4 {[%clk 0:02:45.2]} 20... Bxg2 {[%clk
0:02:40.9]} 21. Kxg2 {[%clk 0:02:47.1]} 21... Qc6 {[%clk 0:02:40.4]} 22. f3
{[%clk 0:02:41.6]} 22... Rfe8 {[%clk 0:02:36.2]} 23. a4 {[%clk 0:02:34]} 23...
Rab8 {[%clk 0:02:35.8]} 24. Rad1 {[%clk 0:02:33.1]} 24... Qc7 {[%clk 0:02:33.4]}
25. Rd6 {[%clk 0:02:24.7]} 25... Nh5 {[%clk 0:02:22.2]} 26. Bxg7 {[%clk
0:02:24.4]} 26... Nxg7 {[%clk 0:02:24.1]} 27. Rfd1 {[%clk 0:02:21.7]} 27... Qe7
{[%clk 0:02:08.9]} 28. Rd7 {[%clk 0:02:16.9]} 28... Qg5 {[%clk 0:02:09.4]} 29.
Qd2 {[%clk 0:01:56.2]} 29... Qf6 {[%clk 0:02:07.3]} 30. e5 {[%clk 0:01:36.5]}
30... Qf5 {[%clk 0:01:52.6]} 31. Qd3 {[%clk 0:01:29.2]} 31... Qg5 {[%clk
0:01:53.7]} 32. f4 {[%clk 0:01:30.5]} 32... Qg4 {[%clk 0:01:54.3]} 33. Ne3
{[%clk 0:01:05.2]} 33... Qe6 {[%clk 0:01:49]} 34. Nd5 {[%clk 0:01:06.4]} 34...
Nh5 {[%clk 0:01:45.2]} 35. Nc7 {[%clk 0:00:35.1]} 35... Qg4 {[%clk 0:01:19]} 36.
Qf3 {[%clk 0:00:29.8]} 36... Qxf3+ {[%clk 0:01:19.1]} 37. Kxf3 {[%clk
0:00:31.7]} 37... Rxb3+ {[%clk 0:01:20.2]} 38. R7d3 {[%clk 0:00:32.6]} 38...
Reb8 {[%clk 0:01:18.4]} 39. g4 {[%clk 0:00:30.7]} 39... c4 {[%clk 0:01:15.3]}
40. Rxb3 {[%clk 0:00:31.8]} 40... Rxb3+ {[%clk 0:01:12.7]} 41. Ke4 {[%clk
0:00:31.9]} 41... Ng3+ {[%clk 0:01:14.1]} 42. Kd5 {[%clk 0:00:31.1]} 42... Rd3+
{[%clk 0:01:13.1]} 43. Rxd3 {[%clk 0:00:31.9]} 43... cxd3 {[%clk 0:01:15]} 44.
Nb5 {[%clk 0:00:33.6]} 44... Ne2 {[%clk 0:01:12.7]} 0-1

[Event "*** MasterClass Titled Tuesday Blitz"]
[Site "Chess.com"]
[Date "2017.10.03"]
[Round "5"]
[White "Alexander_Donchenko"]
[Black "ZapataCharlesS"]
[Result "0-1"]
[WhiteElo "2571"]
[BlackElo "2570"]
[TimeControl "180+2"]
[EndTime "14:06:20 PDT"]
[Termination "ZapataCharlesS won by resignation"]

1. d4 {[%clk 0:03:01.9]} 1... e6 {[%clk 0:03:01.8]} 2. c4 {[%clk 0:03:02.4]}
2... d5 {[%clk 0:03:01.5]} 3. Nf3 {[%clk 0:03:03.1]} 3... Nf6 {[%clk 0:03:01.8]}
4. g3 {[%clk 0:03:04.4]} 4... Bb4+ {[%clk 0:02:59.4]} 5. Nbd2 {[%clk 0:03:05]}
5... O-O {[%clk 0:02:59.3]} 6. Bg2 {[%clk 0:03:05.8]} 6... c6 {[%clk 0:02:56.8]}
7. O-O {[%clk 0:03:06]} 7... b6 {[%clk 0:02:57.4]} 8. Qc2 {[%clk 0:03:06.9]}
8... Ba6 {[%clk 0:02:55.4]} 9. b3 {[%clk 0:03:06.3]} 9... Nbd7 {[%clk
0:02:50.4]} 10. Bb2 {[%clk 0:03:06.3]} 10... Rc8 {[%clk 0:02:46.3]} 11. e4
{[%clk 0:02:49.6]} 11... c5 {[%clk 0:02:38.5]} 12. exd5 {[%clk 0:02:49.9]} 12...
exd5 {[%clk 0:02:37.4]} 13. a3 {[%clk 0:02:50.3]} 13... Bxd2 {[%clk 0:02:35.5]}
14. Nxd2 {[%clk 0:02:50.9]} 14... cxd4 {[%clk 0:02:19.7]} 15. Bxd4 {[%clk
0:02:47.1]} 15... dxc4 {[%clk 0:02:20.9]} 16. bxc4 {[%clk 0:02:46]} 16... Nc5
{[%clk 0:02:21.9]} 17. Bc3 {[%clk 0:02:28.3]} 17... Qd3 {[%clk 0:02:17.6]} 18.
Qxd3 {[%clk 0:02:21.8]} 18... Nxd3 {[%clk 0:02:17.7]} 19. Rfd1 {[%clk
0:02:22.5]} 19... Rfd8 {[%clk 0:02:11.4]} 20. a4 {[%clk 0:02:11.1]} 20... Bxc4
{[%clk 0:01:37.1]} 21. Nxc4 {[%clk 0:02:04.9]} 21... Rxc4 {[%clk 0:01:36.4]} 22.
Ra3 {[%clk 0:01:47.6]} 22... Ng4 {[%clk 0:01:33.9]} 23. Bf1 {[%clk 0:00:58.2]}
23... Ngxf2 {[%clk 0:01:27.8]} 24. Rd2 {[%clk 0:00:59.4]} 24... Ne4 {[%clk
0:01:19.8]} 25. Bxd3 {[%clk 0:00:13.5]} 25... Nxd2 {[%clk 0:01:09.9]} 26. Bxc4
{[%clk 0:00:13.8]} 26... Nxc4 {[%clk 0:01:11.8]} 27. Rb3 {[%clk 0:00:15.3]}
27... Rd3 {[%clk 0:01:09.4]} 28. Kf2 {[%clk 0:00:16.3]} 28... f6 {[%clk
0:01:05.2]} 29. Ke2 {[%clk 0:00:12.3]} 29... Re3+ {[%clk 0:01:03.9]} 30. Kf2
{[%clk 0:00:13.4]} 30... Kf7 {[%clk 0:01:00.1]} 31. a5 {[%clk 0:00:14.3]} 31...
b5 {[%clk 0:00:56.2]} 32. Rxb5 {[%clk 0:00:08.4]} 32... Rxc3 {[%clk 0:00:55.9]}
33. Rb7+ {[%clk 0:00:09.7]} 33... Kg6 {[%clk 0:00:52.6]} 34. Rxa7 {[%clk
0:00:11.6]} 34... Rc2+ {[%clk 0:00:54.2]} 35. Kg1 {[%clk 0:00:10.8]} 35... Ra2
{[%clk 0:00:56.1]} 36. a6 {[%clk 0:00:11.6]} 36... Ne5 {[%clk 0:00:56.8]} 37.
Ra8 {[%clk 0:00:12.5]} 37... Nf3+ {[%clk 0:00:57.7]} 38. Kf1 {[%clk 0:00:13.2]}
38... Nxh2+ {[%clk 0:00:59.3]} 39. Ke1 {[%clk 0:00:14.9]} 39... Nf3+ {[%clk
0:01:00.5]} 40. Kf1 {[%clk 0:00:16.1]} 40... h5 {[%clk 0:01:01]} 0-1

[Event "*** MasterClass Titled Tuesday Blitz"]
[Site "Chess.com"]
[Date "2017.10.03"]
[Round "5"]
[White "chessdjw"]
[Black "Laico"]
[Result "1-0"]
[WhiteElo "2259"]
[BlackElo "2130"]
[TimeControl "180+2"]
[EndTime "14:06:46 PDT"]
[Termination "chessdjw won on time"]

1. Nf3 {[%clk 0:03:01.9]} 1... e6 {[%clk 0:02:59.5]} 2. g3 {[%clk 0:02:58.2]}
2... b6 {[%clk 0:03:00.4]} 3. Bg2 {[%clk 0:02:58.7]} 3... Bb7 {[%clk 0:03:01.5]}
4. O-O {[%clk 0:02:59.8]} 4... f5 {[%clk 0:03:02.6]} 5. c4 {[%clk 0:02:59.3]}
5... Nf6 {[%clk 0:03:03.5]} 6. d3 {[%clk 0:02:59.9]} 6... Be7 {[%clk 0:03:04]}
7. Nc3 {[%clk 0:03:00.4]} 7... O-O {[%clk 0:03:04.7]} 8. Re1 {[%clk 0:02:56.6]}
8... Bb4 {[%clk 0:03:05.4]} 9. Bd2 {[%clk 0:02:56.5]} 9... d6 {[%clk 0:03:00]}
10. a3 {[%clk 0:02:57.1]} 10... Bxc3 {[%clk 0:03:00.9]} 11. Bxc3 {[%clk
0:02:59]} 11... Qe8 {[%clk 0:03:00.8]} 12. b4 {[%clk 0:02:58.3]} 12... Nbd7
{[%clk 0:03:01.4]} 13. a4 {[%clk 0:02:58.7]} 13... e5 {[%clk 0:02:48]} 14. a5
{[%clk 0:02:57.6]} 14... a6 {[%clk 0:02:39]} 15. axb6 {[%clk 0:02:55.1]} 15...
cxb6 {[%clk 0:02:39.7]} 16. e4 {[%clk 0:02:31.7]} 16... fxe4 {[%clk 0:02:33.8]}
17. Nd2 {[%clk 0:02:32.4]} 17... Kh8 {[%clk 0:02:28.7]} 18. dxe4 {[%clk
0:02:33.3]} 18... Qe6 {[%clk 0:02:20.4]} 19. Qe2 {[%clk 0:02:31.4]} 19... Rfc8
{[%clk 0:02:20.3]} 20. Qd3 {[%clk 0:02:31]} 20... Rc7 {[%clk 0:02:14.1]} 21. f3
{[%clk 0:02:29.1]} 21... Rac8 {[%clk 0:02:14.4]} 22. Bb2 {[%clk 0:02:28.6]}
22... Nb8 {[%clk 0:02:09.5]} 23. Bf1 {[%clk 0:02:24.1]} 23... Nc6 {[%clk
0:02:08.9]} 24. Qa3 {[%clk 0:02:15.3]} 24... a5 {[%clk 0:02:03.4]} 25. bxa5
{[%clk 0:02:13.5]} 25... Nxa5 {[%clk 0:02:04.4]} 26. Rad1 {[%clk 0:02:13]} 26...
Ba6 {[%clk 0:02:01.5]} 27. Qb4 {[%clk 0:02:11.1]} 27... Nd7 {[%clk 0:01:53.1]}
28. Ba3 {[%clk 0:01:58.6]} 28... Rc6 {[%clk 0:01:28.2]} 29. Be2 {[%clk
0:01:28.5]} 29... Nc5 {[%clk 0:01:27.1]} 30. Qb1 {[%clk 0:01:16.9]} 30... Nxc4
{[%clk 0:01:17.2]} 31. Nxc4 {[%clk 0:01:16.3]} 31... Bxc4 {[%clk 0:01:19.1]} 32.
Bxc4 {[%clk 0:01:15.5]} 32... Qxc4 {[%clk 0:01:21]} 33. Rd5 {[%clk 0:01:16.4]}
33... Qa4 {[%clk 0:01:12.5]} 34. Bb2 {[%clk 0:01:09.2]} 34... b5 {[%clk
0:01:04.6]} 35. Red1 {[%clk 0:01:09.4]} 35... Nb7 {[%clk 0:00:57.1]} 36. Qd3
{[%clk 0:01:05.8]} 36... b4 {[%clk 0:00:54.3]} 37. Bxe5 {[%clk 0:01:03.7]} 37...
Rc2 {[%clk 0:00:26.1]} 38. Bxg7+ {[%clk 0:00:58.6]} 38... Kxg7 {[%clk
0:00:25.6]} 39. Rg5+ {[%clk 0:00:59.7]} 39... Kf6 {[%clk 0:00:24]} 40. Qd5
{[%clk 0:00:45.7]} 40... R8c5 {[%clk 0:00:18.8]} 41. Rf5+ {[%clk 0:00:45.5]} 1-0

[Event "*** MasterClass Titled Tuesday Blitz"]
[Site "Chess.com"]
[Date "2017.10.03"]
[Round "5"]
[White "nutibara"]
[Black "HanSchut"]
[Result "0-1"]
[WhiteElo "2282"]
[BlackElo "2225"]
[TimeControl "180+2"]
[EndTime "14:06:48 PDT"]
[Termination "HanSchut won on time"]

1. e4 {[%clk 0:03:01.6]} 1... c5 {[%clk 0:03:00.4]} 2. Nf3 {[%clk 0:03:02.4]}
2... d6 {[%clk 0:03:01.5]} 3. d4 {[%clk 0:03:04]} 3... cxd4 {[%clk 0:03:03.2]}
4. Nxd4 {[%clk 0:03:05.9]} 4... Nf6 {[%clk 0:03:04.3]} 5. Nc3 {[%clk 0:03:07.4]}
5... a6 {[%clk 0:03:05.8]} 6. Bc4 {[%clk 0:03:08.9]} 6... e6 {[%clk 0:03:07.1]}
7. Bb3 {[%clk 0:03:10.5]} 7... b5 {[%clk 0:03:08.4]} 8. O-O {[%clk 0:03:10.6]}
8... b4 {[%clk 0:03:10]} 9. Na4 {[%clk 0:03:11.3]} 9... Bd7 {[%clk 0:03:10.9]}
10. f3 {[%clk 0:03:11.1]} 10... Nc6 {[%clk 0:03:11.4]} 11. Be3 {[%clk
0:03:11.2]} 11... Rb8 {[%clk 0:03:11.2]} 12. c3 {[%clk 0:03:07.9]} 12... Be7
{[%clk 0:03:04.5]} 13. Rc1 {[%clk 0:03:04]} 13... bxc3 {[%clk 0:03:01.9]} 14.
Nxc3 {[%clk 0:02:54.8]} 14... O-O {[%clk 0:03:01.3]} 15. Rf2 {[%clk 0:02:30.2]}
15... Na5 {[%clk 0:02:58.1]} 16. Rfc2 {[%clk 0:01:57.1]} 16... e5 {[%clk
0:02:47.3]} 17. Nde2 {[%clk 0:01:40.8]} 17... Nxb3 {[%clk 0:02:48.2]} 18. axb3
{[%clk 0:01:42.4]} 18... Rxb3 {[%clk 0:02:48]} 19. Ra1 {[%clk 0:01:41.3]} 19...
Qb8 {[%clk 0:02:21.9]} 20. Qd2 {[%clk 0:00:55.1]} 20... Qb7 {[%clk 0:02:11.2]}
21. Nc1 {[%clk 0:00:49.2]} 21... Rb4 {[%clk 0:02:02.5]} 22. N1a2 {[%clk
0:00:11.7]} 22... Rb3 {[%clk 0:01:52.4]} 23. Nc1 {[%clk 0:00:12]} 23... Rb4
{[%clk 0:01:53.1]} 24. Nd3 {[%clk 0:00:12.5]} 24... Rc4 {[%clk 0:01:49.7]} 25.
Rac1 {[%clk 0:00:09]} 25... Rfc8 {[%clk 0:01:48.3]} 26. Nd5 {[%clk 0:00:08]}
26... Rxc2 {[%clk 0:01:45.4]} 27. Nxe7+ {[%clk 0:00:08.9]} 27... Kf8 {[%clk
0:01:46.4]} 28. Rxc2 {[%clk 0:00:10]} 28... Rxc2 {[%clk 0:01:41.4]} 29. Qxc2
{[%clk 0:00:11.9]} 29... Kxe7 {[%clk 0:01:42.7]} 30. Qc3 {[%clk 0:00:08.9]}
30... Bb5 {[%clk 0:01:35]} 31. Nxe5 {[%clk 0:00:08.4]} 31... dxe5 {[%clk
0:01:32]} 32. Qxe5+ {[%clk 0:00:08.4]} 32... Kf8 {[%clk 0:01:22.2]} 33. Bc5+
{[%clk 0:00:09]} 33... Kg8 {[%clk 0:01:22.8]} 34. Qd6 {[%clk 0:00:10.6]} 34...
h6 {[%clk 0:01:16.8]} 35. Qf8+ {[%clk 0:00:08.4]} 35... Kh7 {[%clk 0:01:17.7]}
36. Bd4 {[%clk 0:00:09.8]} 36... Qd7 {[%clk 0:01:08.8]} 37. Bc3 {[%clk
0:00:10.4]} 37... Qd1+ {[%clk 0:01:05.5]} 38. Kf2 {[%clk 0:00:11.3]} 38... Qe2+
{[%clk 0:01:06.9]} 39. Kg3 {[%clk 0:00:12.5]} 39... Nh5+ {[%clk 0:01:05.4]} 40.
Kh3 {[%clk 0:00:02.8]} 40... Bd7+ {[%clk 0:00:57.2]} 41. Kh4 {[%clk 0:00:04]}
41... Qxg2 {[%clk 0:00:48.5]} 0-1